bitfinex/quotes_ETHUSD_20250711
["timestamp","ask_amount","ask_price","bid_price","bid_amount"]
[1752200500173,6.27625,2962.1,2962.0,0.001]
[1752200502074,1.08925,2962.1,2962.0,0.001]
[1752200502271,1.08925,2962.1,2961.0,0.001]
[1752200502272,0.7556,2961.9,2961.0,0.001]
[1752200502483,0.55,2962.0,2961.0,0.001]
[1752200502484,0.7556,2961.7,2961.0,0.001]
[1752200502650,5.189,2961.6,2961.0,0.001]
[1752200502974,0.4436,2962.3,2961.3,7.87332294]
[1752200503190,0.4436,2961.9,2961.4,10.0]
[1752200503475,5.6326,2961.8,2961.4,10.0]
[1752200505082,0.4436,2961.8,2961.4,10.0]
[1752200505250,5.191,2961.7,2961.4,10.0]
[1752200507521,1.5203,2962.5,2961.5,0.182]
[1752200507795,0.4436,2963.0,2962.5,10.0]
[1752200508094,5.6336,2962.9,2962.5,10.0]
[1752200508398,0.4436,2962.8,2962.3,10.0]
[1752200508568,0.4436,2962.7,2962.3,10.0]
[1752200508891,5.19,2962.6,2962.3,10.0]
[1752200509096,5.6336,2962.6,2962.3,10.0]
[1752200509395,5.6336,2962.6,2961.8,0.182]
[1752200509396,1.2403,2962.5,2961.7,10.0]
[1752200509559,0.4436,2962.4,2961.7,10.0]
[1752200509765,5.19,2962.3,2961.7,10.0]
[1752200509965,0.4436,2962.2,2961.7,10.0]
[1752200510198,5.19,2962.3,2961.7,10.0]
[1752200510199,0.4436,2962.1,2961.7,10.0]
[1752200510384,5.191,2962.0,2961.7,10.0]
[1752200510565,0.4664,2961.9,2961.7,10.0]
[1752200511194,5.191,2962.0,2961.7,10.0]
[1752200511616,0.4664,2961.9,2961.4,0.001]
[1752200511902,1.83084,2961.9,2961.4,0.001]
[1752200512201,0.4664,2961.8,2961.4,0.001]
[1752200512395,5.19,2961.7,2961.4,0.001]
[1752200512571,5.6564,2961.7,2961.4,0.001]
[1752200514094,0.4664,2961.6,2961.4,0.001]
[1752200514599,0.4664,2961.5,2961.4,0.001]
[1752200515468,1.31204,2961.5,2961.4,0.001]
[1752200515675,2.08434,2961.5,2961.4,0.001]
[1752200516401,2.63434,2961.5,2961.4,0.001]
[1752200516608,6.01100722,2961.5,2961.4,0.001]
[1752200516903,2.63434,2961.5,2961.4,0.001]
[1752200517280,6.01100722,2961.5,2961.4,0.001]
[1752200517769,1.3343,2961.4,2961.0,0.001]
[1752200517964,0.7843,2961.1,2961.0,0.001]
[1752200518372,1.2507,2961.1,2961.0,0.001]
[1752200519111,1.8007,2961.1,2961.0,0.001]
[1752200519278,5.45782336,2961.1,2961.0,0.001]
[1752200519784,2.0807,2961.1,2961.0,0.001]
[1752200519997,6.21135676,2961.1,2961.0,0.001]
[1752200521397,6.21135676,2961.1,2960.8,0.001]
[1752200521398,4.15435148,2960.9,2960.8,0.001]
[1752200521602,5.968,2960.9,2960.8,0.001]
[1752200521783,6.4344,2960.9,2960.8,0.001]
[1752200521983,9.81175148,2960.9,2960.8,0.001]
[1752200522211,10.95127997,2960.9,2960.8,0.001]
[1752200522808,7.57392849,2960.9,2960.8,0.001]
[1752200523109,7.85392849,2960.9,2960.8,0.001]
[1752200524334,8.40492849,2960.9,2960.8,0.001]
[1752200524615,2.66292849,2960.9,2960.8,0.001]
[1752200524780,1.5234,2960.9,2960.8,0.001]
[1752200525112,6.7154,2960.9,2960.8,0.001]
[1752200525310,7.2654,2960.9,2960.8,0.001]
[1752200525817,10.64275148,2960.9,2960.8,0.001]
[1752200527083,10.64275148,2960.9,2960.2,0.001]
[1752200527084,0.55,2960.4,2960.2,0.001]
[1752200527285,6.63598991,2960.3,2960.2,0.001]
[1752200527511,7.10238991,2960.3,2960.2,0.001]
[1752200528530,3.37826424,2960.1,2958.5,0.001]
[1752200528728,0.55,2959.3,2958.5,0.001]
[1752200529038,10.90073459,2959.2,2958.5,0.001]
[1752200529400,11.36713459,2959.2,2958.5,0.001]
[1752200530423,11.36713459,2959.2,2959.0,0.001]
[1752200532325,0.55,2958.9,2958.1,0.04]
[1752200532635,0.55,2958.6,2958.1,0.04]
[1752200532930,0.7583,2958.7,2958.1,0.04]
[1752200532931,0.55,2958.4,2958.1,0.04]
[1752200533223,11.58684,2958.3,2958.1,0.04]
[1752200533436,10.44,2958.2,2958.1,0.04]
[1752200533642,10.44,2958.2,2958.1,10.04]
[1752200534238,10.44,2958.2,2958.1,0.04]
[1752200537146,10.442,2958.2,2958.1,0.222]
[1752200537318,5.221,2958.2,2958.1,0.3112]
[1752200539742,6.2095,2958.2,2958.1,0.04]
[1752200540102,6.4895,2958.2,2958.1,0.04]
[1752200542053,6.4895,2958.2,2957.9,0.001]
[1752200542054,0.55,2958.1,2957.9,0.001]
[1752200542258,6.5681,2958.0,2957.9,0.001]
[1752200542609,7.0289,2958.0,2957.9,0.001]
[1752200542835,2.044,2958.0,2957.9,0.001]
[1752200543035,6.4949,2958.0,2957.9,0.001]
[1752200543234,5.6948,2958.0,2957.9,0.001]
[1752200544119,1.2354,2958.3,2957.9,0.001]
[1752200544503,5.236,2958.2,2957.9,0.1302]
[1752200544706,5.236,2958.1,2957.9,0.1302]
[1752200544909,8.104,2958.8,2957.9,10.1302]
[1752200545222,8.104,2958.8,2957.9,0.1302]
[1752200545223,5.6988,2958.7,2957.9,0.1302]
[1752200545401,7.07908,2958.7,2957.9,0.1302]
[1752200545605,8.104,2958.8,2958.0,0.182]
[1752200545846,8.104,2958.8,2958.4,10.0]
[1752200546017,5.243,2958.7,2958.4,10.0]
[1752200546229,8.104,2958.8,2958.4,10.0]
[1752200546518,5.244,2958.7,2958.6,0.1292]
[1752200547139,5.244,2958.7,2958.6,0.3112]
[1752200547338,8.108,2959.9,2958.6,0.3112]
[1752200547339,0.4608,2959.6,2958.6,0.3112]
[1752200547542,8.108,2959.9,2959.0,7.87332294]
[1752200547543,5.243,2959.5,2959.0,7.87332294]
[1752200547848,8.5688,2959.9,2959.1,10.0]
[1752200548006,5.243,2959.8,2959.1,10.0]
[1752200548205,5.7038,2959.8,2958.6,0.1292]
[1752200548452,0.8318,2959.6,2958.3,0.1292]
[1752200548656,5.7048,2959.5,2958.3,0.1292]
[1752200548941,0.4608,2959.4,2958.3,0.1292]
[1752200549143,0.42568227,2959.3,2958.3,0.1292]
[1752200549358,5.245,2959.2,2958.3,0.1292]
[1752200549723,0.4608,2959.1,2958.3,0.1292]
[1752200550424,0.4608,2959.1,2958.4,10.0]
[1752200551670,5.245,2959.2,2958.4,10.0]
[1752200551876,1.7891,2959.1,2957.9,0.001]
[1752200552159,1.7891,2959.1,2957.9,7.87432294]
[1752200552160,1.2391,2959.1,2957.9,7.87432294]
[1752200552340,5.7098,2959.0,2958.4,10.0]
[1752200552541,5.249,2959.0,2958.4,10.0]
[1752200552729,5.249,2959.0,2957.9,0.1302]
[1752200552730,0.4608,2958.9,2957.9,0.1302]
[1752200553854,5.25,2958.8,2957.9,0.1302]
[1752200554153,0.4608,2958.7,2957.9,0.1302]
[1752200554359,0.4608,2958.7,2957.9,8.00352294]
[1752200554536,0.4608,2958.7,2958.0,10.03380662]
[1752200554736,0.4608,2958.7,2958.0,10.0]
[1752200557141,0.7803,2959.1,2957.9,8.00352294]
[1752200557142,5.245,2958.6,2958.4,10.0]
[1752200557343,0.7803,2959.1,2958.4,10.0]
[1752200557344,5.245,2958.5,2958.4,10.0]
[1752200557742,0.7803,2959.1,2958.4,10.182]
[1752200557743,5.246,2958.6,2958.4,10.182]
[1752200557922,5.246,2958.7,2958.2,10.0]
[1752200558124,5.246,2958.7,2958.1,10.0]
[1752200559562,1.03148,2958.6,2958.1,10.0]
[1752200559760,0.57068,2958.6,2958.1,10.0]
[1752200559936,5.246,2958.7,2958.1,10.182]
[1752200560333,0.28,2960.1,2958.1,10.182]
[1752200560334,0.002,2960.3,2959.3,10.0]
[1752200560538,0.002,2960.3,2960.1,7.87332294]
[1752200560745,0.002,2960.3,2959.9,1.68587193]
[1752200560936,0.002,2960.3,2959.8,0.03378606]
[1752200561263,0.002,2960.3,2959.7,7.87332294]
[1752200561264,0.4628,2960.3,2959.7,7.87332294]
[1752200561758,0.002,2960.3,2959.7,7.87332294]
[1752200562184,0.002,2960.3,2959.7,9.24786153]
[1752200562538,0.002,2960.3,2959.7,7.87332294]
[1752200562743,0.57748,2960.3,2959.7,7.87332294]
[1752200563066,0.57748,2960.3,2959.5,5.96083713]
[1752200563261,0.4608,2960.2,2959.6,10.0]
[1752200563937,0.7959,2960.1,2959.2,0.1292]
[1752200564143,0.4608,2960.0,2959.0,5.96083713]
[1752200564551,0.4608,2960.0,2959.1,10.0]
[1752200564959,5.294,2960.0,2959.1,10.0]
[1752200565143,5.90299,2960.0,2959.1,10.0]
[1752200565863,0.4608,2959.9,2959.1,10.0]
[1752200567440,0.7408,2959.9,2959.1,10.0]
[1752200567641,0.7408,2959.9,2959.2,0.15928008]
[1752200570840,1.5199,2959.8,2959.2,0.15928008]
[1752200571036,1.2399,2959.7,2959.2,0.15928008]
[1752200571272,0.28,2959.6,2959.2,0.15928008]
[1752200571479,0.7834,2959.4,2959.2,0.15928008]
[1752200571655,0.4565,2959.3,2959.2,0.15928008]
[1752200571856,1.10919,2959.3,2959.2,0.15928008]
[1752200575690,0.65269,2959.3,2959.2,0.15928008]
[1752200576073,5.282,2959.3,2959.2,0.15928008]
[1752200576749,5.28,2959.4,2959.2,0.15928008]
[1752200576954,0.28,2959.6,2959.2,0.15928008]
[1752200577156,5.56,2959.6,2959.2,0.15928008]
[1752200580715,0.4565,2959.5,2959.2,0.15928008]
[1752200580883,5.56,2959.6,2959.2,0.15928008]
[1752200581086,0.28,2959.6,2959.2,0.15928008]
[1752200581271,5.275,2959.5,2959.2,0.15928008]
[1752200581467,0.28,2959.6,2959.2,0.15928008]
[1752200581669,0.8114,2960.1,2959.6,10.0]
[1752200581992,5.273,2960.0,2959.5,5.96083713]
[1752200582179,0.8114,2960.1,2959.6,10.0]
[1752200582491,5.273,2959.9,2959.6,10.0]
[1752200582793,5.7295,2959.9,2959.6,10.0]
[1752200583007,0.4565,2959.8,2959.6,10.0]
[1752200584372,5.273,2959.9,2959.6,10.0]
[1752200584597,1.2679,2960.1,2959.6,10.0]
[1752200584891,5.271,2959.8,2959.2,0.15928008]
[1752200585092,0.4565,2959.7,2959.2,0.15928008]
[1752200585435,0.4565,2959.6,2959.2,10.15928008]
[1752200585634,0.28,2959.7,2959.2,10.15928008]
[1752200585635,0.4565,2959.5,2959.2,10.15928008]
[1752200585935,5.27,2959.4,2959.2,10.15928008]
[1752200587138,5.7265,2959.4,2959.2,10.15928008]
[1752200589196,0.4565,2959.3,2959.2,0.15928008]
[1752200591219,5.84265,2959.4,2959.2,0.15928008]
[1752200591589,6.29915,2959.4,2959.2,10.15928008]
[1752200591789,5.27,2959.4,2959.2,10.15928008]
[1752200592523,5.7265,2959.4,2959.2,10.15928008]
[1752200592891,5.27,2959.4,2959.2,10.15928008]
[1752200593733,0.28,2959.7,2959.2,10.15928008]
[1752200593900,5.259,2959.6,2959.2,10.15928008]
[1752200594730,0.28,2959.7,2959.5,7.88357056]
[1752200594898,5.26,2959.6,2959.5,7.88357056]
[1752200595809,5.258,2959.6,2959.5,7.88357056]
[1752200597728,5.258,2959.6,2959.5,17.88357056]
[1752200598723,5.7145,2959.6,2959.5,17.88357056]
[1752200599197,6.24402975,2959.6,2959.5,10.0]
[1752200600350,5.258,2959.6,2959.5,10.0]
[1752200600763,5.7119,2959.6,2959.5,10.0]
[1752200603174,0.7825,2959.5,2959.2,0.15928008]
[1752200603363,5.7009,2959.4,2959.2,0.15928008]
[1752200605154,5.247,2959.4,2959.2,10.15928008]
[1752200605751,5.245,2959.3,2959.2,10.15928008]
[1752200607065,5.6989,2959.3,2959.2,10.15928008]
[1752200607252,6.2234,2959.3,2959.2,0.15928008]
[1752200608122,5.6989,2959.3,2959.2,0.15928008]
[1752200608322,5.245,2959.3,2959.2,0.15928008]
[1752200608667,5.245,2959.3,2959.2,10.15928008]
[1752200611830,5.239,2959.3,2959.2,10.15928008]
[1752200612025,0.7339,2959.7,2959.2,10.15928008]
[1752200612229,5.239,2959.6,2959.2,10.15928008]
[1752200613566,5.6929,2959.6,2959.2,10.15928008]
[1752200614938,5.239,2959.6,2959.3,0.1292]
[1752200615342,0.28,2959.7,2959.3,0.1292]
[1752200615648,5.234,2959.6,2959.3,0.1292]
[1752200616058,5.6879,2959.6,2959.3,0.1292]
[1752200619080,5.6879,2959.6,2959.2,10.15928008]
[1752200619300,0.4539,2959.5,2959.2,10.15928008]
[1752200619473,0.4539,2959.4,2959.2,10.15928008]
[1752200619678,5.229,2959.3,2959.2,10.15928008]
[1752200619898,5.6829,2959.3,2959.2,10.15928008]
[1752200623903,0.7339,2959.7,2959.2,10.15928008]
[1752200624107,5.225,2959.6,2959.5,7.88357056]
[1752200624303,5.6789,2959.6,2959.5,7.88357056]
[1752200624509,0.4539,2959.6,2959.5,7.88357056]
[1752200624679,5.6789,2959.6,2959.5,7.88357056]
[1752200625590,5.6789,2959.6,2959.2,10.15928008]
[1752200625797,0.4539,2959.5,2959.2,10.15928008]
[1752200626096,0.28,2959.7,2959.2,10.15928008]
[1752200626097,5.6769,2959.4,2959.2,10.15928008]
[1752200626300,5.223,2959.3,2959.2,10.15928008]
[1752200628180,5.22,2959.3,2959.2,10.15928008]
[1752200630007,5.22,2959.3,2959.2,0.15928008]
[1752200630008,5.6739,2959.3,2959.2,0.15928008]
[1752200630309,7.2433,2959.3,2959.2,0.15928008]
[1752200630807,6.4759,2959.3,2959.2,0.15928008]
[1752200631111,7.2328,2959.3,2959.2,0.15928008]
[1752200631609,2.0128,2959.3,2959.2,0.15928008]
[1752200631809,6.7108,2959.3,2959.2,0.15928008]
[1752200637791,7.2608,2959.3,2959.2,0.15928008]
[1752200640527,2.0408,2959.3,2959.2,0.15928008]
[1752200640689,7.2548,2959.3,2959.2,0.15928008]
[1752200649535,6.7028,2959.3,2959.2,0.15928008]
[1752200650234,8.18388,2959.3,2959.2,0.15928008]
[1752200651430,2.97188,2959.3,2959.2,0.15928008]
[1752200651612,8.18388,2959.3,2959.2,0.15928008]
[1752200652432,5.492,2959.3,2959.2,5.41869247]
[1752200654238,0.28,2959.3,2959.2,5.41869247]
[1752200654404,5.492,2959.3,2959.2,5.41869247]
[1752200655197,5.9224,2959.3,2959.2,5.41869247]
[1752200658436,5.492,2959.3,2959.2,5.41869247]
[1752200660623,5.491,2959.3,2959.2,5.41869247]
[1752200662043,5.491,2959.3,2959.0,0.001]
[1752200662044,9.9369175,2959.3,2959.0,0.001]
[1752200662346,1.3797,2959.1,2959.0,0.001]
[1752200662513,6.8707,2959.1,2959.0,0.001]
[1752200662716,7.3451,2959.1,2959.0,0.001]
[1752200662908,8.47676376,2959.1,2959.0,0.001]
[1752200663754,11.85616966,2959.1,2959.0,0.001]
[1752200664056,4.68744854,2958.8,2958.7,44.58425228]
[1752200664222,9.89844854,2958.8,2958.7,44.58425228]
[1752200664424,10.37284854,2958.8,2958.7,44.58425228]
[1752200664650,11.7480854,2958.8,2958.7,44.58425228]
[1752200665167,11.7480854,2958.8,2958.7,42.92975853]
[1752200665862,11.7480854,2958.8,2958.7,38.86317007]
[1752200666026,11.7480854,2958.8,2958.7,36.90844054]
[1752200666339,11.7480854,2958.8,2958.7,35.72816001]
[1752200666546,12.0280854,2958.8,2958.7,35.72816001]
[1752200667126,22.0280854,2958.8,2958.7,31.16400968]
[1752200667627,22.0280854,2958.8,2958.7,30.01680547]
[1752200667828,22.0280854,2958.8,2958.7,28.33489598]
[1752200668024,22.0280854,2958.8,2958.7,17.35266649]
[1752200668332,22.0280854,2958.8,2958.7,13.2423717]
[1752200668647,22.0280854,2958.8,2958.7,11.54181321]
[1752200669258,22.27812339,2958.8,2958.7,11.54181321]
[1752200669857,22.27812339,2958.8,2958.7,11.04587592]
[1752200670061,3.9306626,2958.0,2957.9,0.001]
[1752200670270,18.47312886,2958.0,2957.9,0.001]
[1752200670434,18.94752886,2958.0,2957.9,0.001]
[1752200672763,28.94752886,2958.0,2957.9,0.001]
[1752200674067,28.94752886,2958.0,2957.6,0.001]
[1752200674068,3.93100551,2957.7,2957.6,0.001]
[1752200674362,16.93650668,2957.7,2957.6,0.001]
[1752200674691,17.41090668,2957.7,2957.6,0.001]
[1752200676367,4.74382025,2956.9,2956.5,0.001]
[1752200676576,6.7719,2956.9,2956.5,0.001]
[1752200676787,7.2463,2956.9,2956.5,0.001]
[1752200676941,8.30911067,2956.9,2956.5,0.001]
[1752200677337,11.69103092,2956.9,2956.5,0.001]
[1752200677858,21.69103092,2956.9,2956.5,0.001]
[1752200679488,18.30911067,2956.9,2956.5,0.001]
[1752200680152,13.09511067,2956.9,2956.5,0.001]
[1752200680354,18.30911067,2956.9,2956.5,0.001]
[1752200680555,21.69103092,2956.9,2956.5,0.001]
[1752200681576,3.09511067,2956.9,2956.5,0.001]
[1752200681881,7.2463,2956.9,2956.5,0.001]
[1752200682892,3.57703463,2956.8,2956.5,0.001]
[1752200683090,4.05143463,2956.8,2956.5,0.001]
[1752200683297,4.60143463,2956.8,2956.5,0.001]
[1752200683602,3.38260663,2956.3,2956.2,0.001]
[1752200683806,11.21590903,2956.3,2956.2,0.001]
[1752200684087,10.86890903,2956.3,2956.2,0.001]
[1752200684301,16.08690903,2956.3,2956.2,0.001]
[1752200685865,15.61350903,2956.3,2956.2,0.001]
[1752200687063,13.882,2956.3,2956.2,0.001]
[1752200688583,14.077,2956.3,2956.2,0.001]
[1752200689895,14.074,2956.3,2956.2,0.001]
[1752200690895,8.308,2956.3,2956.2,0.001]
[1752200691099,13.524,2956.3,2956.2,0.001]
[1752200693303,13.524,2956.3,2956.2,0.7512]
[1752200695086,13.524,2956.3,2956.2,0.001]
[1752200696214,13.524,2956.3,2956.2,0.7946]
[1752200696399,13.524,2956.3,2956.2,0.9776]
[1752200697023,8.308,2956.3,2956.2,0.9776]
[1752200697251,13.524,2956.3,2956.2,0.9776]
[1752200698720,8.308,2956.3,2956.2,0.7946]
[1752200698935,13.524,2956.3,2956.2,0.9776]
[1752200699415,13.524,2956.3,2956.2,0.7946]
[1752200699616,13.524,2956.3,2956.2,0.001]
[1752200699819,13.974,2956.3,2956.2,0.001]
[1752200700516,16.00458,2956.3,2956.2,0.001]
[1752200701718,13.524,2956.3,2956.2,0.001]
[1752200702415,13.974,2956.3,2956.2,0.001]
[1752200702798,14.524,2956.3,2956.2,0.001]
[1752200704694,27.90660663,2956.3,2956.2,0.001]
[1752200704909,17.48272106,2956.2,2956.1,0.041]
[1752200705203,17.48272106,2956.2,2955.1,0.8157]
[1752200705204,1.3031,2955.5,2955.1,0.04]
[1752200705420,5.216,2955.4,2955.1,0.04]
[1752200705621,5.666,2955.4,2955.1,0.04]
[1752200706232,5.216,2955.4,2955.1,0.04]
[1752200707336,1.0,2955.3,2955.1,0.04]
[1752200707509,5.216,2955.2,2955.1,0.04]
[1752200708315,6.7926,2955.2,2955.1,0.04]
[1752200708514,7.6081,2955.2,2955.1,0.04]
[1752200710237,10.99196572,2955.2,2955.1,0.04]
[1752200711233,25.63087811,2955.2,2955.1,0.04]
[1752200711430,26.45167811,2955.2,2955.1,0.04]
[1752200713015,21.19226572,2955.2,2955.1,0.04]
[1752200713734,3.93422854,2954.9,2954.4,33.35299723]
[1752200713916,0.55,2954.5,2954.4,33.35299723]
[1752200714116,6.331,2954.5,2954.4,33.35299723]
[1752200715161,0.564,2954.5,2954.4,33.35299723]
[1752200715455,5.332,2954.5,2954.4,34.38459723]
[1752200716079,5.332,2954.5,2954.4,34.15959723]
[1752200717138,5.332,2954.5,2954.4,34.38459723]
[1752200717322,0.114,2954.5,2954.4,34.38459723]
[1752200717519,5.332,2954.5,2954.4,34.38459723]
[1752200719455,5.332,2954.5,2954.4,34.15959723]
[1752200722248,5.332,2954.5,2954.4,34.38459723]
[1752200722645,5.332,2954.5,2954.4,34.15959723]
[1752200727069,5.332,2954.5,2954.4,34.38459723]
[1752200728383,5.332,2954.5,2954.4,33.35299723]
[1752200730169,5.805,2954.5,2954.4,33.35299723]
[1752200730352,6.46236,2954.5,2954.4,33.35299723]
[1752200730848,5.98936,2954.5,2954.4,33.35299723]
[1752200731155,5.332,2954.5,2954.4,33.35299723]
[1752200731846,5.332,2954.5,2954.4,34.18239723]
[1752200733743,5.332,2954.5,2954.4,34.18339723]
[1752200734247,5.331,2954.5,2954.4,34.18339723]
[1752200737690,0.114,2954.5,2954.4,42.32078257]
[1752200737864,0.114,2954.5,2954.4,52.32078257]
[1752200738068,5.331,2954.5,2954.4,52.32078257]
[1752200738280,0.114,2954.5,2954.4,52.32078257]
[1752200738788,5.217,2954.6,2954.5,10.8045]
[1752200739106,5.217,2954.6,2954.5,16.30221435]
[1752200739452,5.217,2954.6,2954.5,19.55529807]
[1752200739659,5.217,2954.6,2954.5,16.30221435]
[1752200743193,0.114,2954.9,2954.5,16.30221435]
[1752200743395,5.33,2954.9,2954.8,5.27271435]
[1752200743618,5.33,2954.9,2954.8,6.07741435]
[1752200743896,5.33,2954.9,2954.8,6.30241435]
[1752200744600,0.114,2954.9,2954.8,6.30241435]
[1752200744789,5.218,2955.0,2954.8,6.93604034]
[1752200744984,5.218,2955.0,2954.9,0.225]
[1752200746000,0.002,2955.0,2954.9,0.225]
[1752200746297,0.002,2955.0,2954.9,0.25884209]
[1752200746495,0.002,2955.0,2954.9,11.78583033]
[1752200746794,0.002,2955.0,2954.9,11.75198824]
[1752200748062,0.114,2955.7,2954.9,10.92198824]
[1752200748265,0.114,2955.7,2955.6,5.27271435]
[1752200748510,5.329,2955.7,2955.6,6.07001435]
[1752200751810,5.215,2955.7,2955.6,6.07001435]
[1752200752896,8.118,2956.1,2955.6,6.07001435]
[1752200753096,5.214,2956.0,2955.6,6.07001435]
[1752200753392,8.5761,2956.1,2955.7,10.0]
[1752200753587,5.214,2955.9,2955.7,10.0]
[1752200754597,5.214,2955.8,2955.7,10.0]
[1752200754797,8.118,2956.1,2955.7,10.0]
[1752200754991,5.214,2956.0,2955.9,5.27271435]
[1752200755214,8.118,2956.1,2955.9,5.27271435]
[1752200755915,5.214,2956.0,2955.9,5.27271435]
[1752200758625,5.213,2956.0,2955.9,5.27271435]
[1752200762623,8.118,2956.1,2955.9,5.27271435]
[1752200762929,5.212,2956.0,2955.9,5.27271435]
[1752200766950,7.85841,2956.0,2955.3,0.8254]
[1752200767241,7.85841,2956.0,2955.2,10.0]
[1752200767242,0.4581,2955.9,2955.2,10.0]
[1752200767402,5.211,2955.8,2955.2,10.0]
[1752200767602,0.4581,2955.7,2955.2,10.0]
[1752200767802,5.211,2955.6,2955.2,10.0]
[1752200768002,1.2674,2955.5,2954.9,5.27271435]
[1752200768233,5.6691,2955.4,2954.9,5.27271435]
[1752200768425,5.211,2955.4,2955.0,10.0]
[1752200768733,0.4581,2955.3,2955.0,10.0]
[1752200768905,5.211,2955.2,2955.0,10.0]
[1752200769111,0.4581,2955.1,2954.8,5.27271435]
[1752200769347,5.211,2955.0,2954.8,5.30655758]
[1752200769505,5.211,2955.0,2954.8,5.27271435]
[1752200770126,5.211,2955.0,2954.9,10.0]
[1752200773733,5.211,2955.0,2954.7,0.8254]
[1752200773933,5.211,2955.0,2954.9,5.27271435]
[1752200774801,0.114,2955.4,2955.0,0.8203]
[1752200775039,0.114,2955.4,2955.3,5.27271435]
[1752200775329,5.325,2955.4,2955.3,15.27271435]
[1752200775532,1.2913,2956.2,2955.4,10.0]
[1752200775737,0.002,2956.2,2956.0,5.27271435]
[1752200775916,13.329,2956.1,2956.0,5.27271435]
[1752200776514,8.118,2956.1,2956.0,5.27271435]
[1752200776724,13.329,2956.1,2956.0,5.27271435]
[1752200778432,8.118,2956.1,2956.0,5.27271435]
[1752200778652,13.329,2956.1,2956.0,5.27271435]
[1752200780241,13.328,2956.1,2956.0,5.27271435]
[1752200780425,5.21,2956.1,2956.0,15.87678579]
[1752200781210,0.002,2956.2,2956.0,15.87678579]
[1752200781413,5.21,2956.1,2956.0,15.87678579]
[1752200781940,0.002,2956.2,2956.0,15.87678579]
[1752200782154,0.002,2956.2,2956.1,1.58767858]
[1752200782352,5.212,2956.2,2956.1,1.58767858]
[1752200782924,0.002,2956.2,2956.1,1.58767858]
[1752200783262,0.002,2957.6,2956.2,0.7582]
[1752200783263,0.08,2957.1,2956.2,0.7582]
[1752200783551,5.211,2956.9,2956.7,0.7582]
[1752200783710,0.002,2956.9,2956.7,0.79202149]
[1752200783908,5.211,2956.9,2956.7,10.79202149]
[1752200784146,5.211,2956.9,2956.7,10.7582]
[1752200784611,5.211,2956.9,2956.7,11.20972226]
[1752200784806,0.002,2956.9,2956.7,11.20972226]
[1752200785239,0.002,2956.9,2956.8,0.03382034]
[1752200785442,0.002,2956.9,2956.7,11.20972226]
[1752200785648,0.002,2956.9,2956.8,0.225]
[1752200785848,0.002,2956.9,2956.8,0.83481144]
[1752200786450,0.002,2956.9,2956.8,0.60981144]
[1752200786856,0.775,2957.6,2957.5,5.27271435]
[1752200786857,0.002,2957.6,2957.5,5.27271435]
[1752200787024,5.21,2957.6,2957.5,5.27271435]
[1752200787443,5.6686,2957.6,2957.5,5.27271435]
[1752200791881,0.8287,2957.5,2956.8,0.60981144]
[1752200792047,0.4586,2957.4,2957.2,5.27271435]
[1752200792250,5.207,2957.3,2957.2,15.27271435]
[1752200792464,5.6656,2957.3,2957.2,15.27271435]
[1752200792905,5.6656,2957.3,2956.9,10.0]
[1752200792906,6.31503,2957.3,2956.9,10.0]
[1752200793185,1.2873,2957.2,2956.8,10.0]
[1752200793351,0.4586,2957.1,2956.8,10.0]
[1752200793547,5.206,2957.0,2956.7,5.27271435]
[1752200793979,0.4586,2956.9,2956.7,5.27271435]
[1752200794185,5.206,2957.0,2956.7,5.27271435]
[1752200794383,0.4586,2956.8,2956.7,5.27271435]
[1752200794900,5.6646,2957.0,2956.7,5.27271435]
[1752200795199,0.4586,2956.9,2956.7,5.27271435]
[1752200795956,5.206,2957.0,2956.8,10.0]
[1752200797194,5.6646,2957.0,2956.8,10.0]
[1752200798467,5.206,2957.0,2956.8,10.0]
[1752200798668,0.4586,2956.9,2956.8,10.0]
[1752200799366,5.206,2957.0,2956.8,10.0]
[1752200799566,0.4586,2956.9,2956.8,10.0]
[1752200800002,5.206,2957.0,2956.8,10.0]
[1752200800193,0.4586,2956.9,2956.8,10.0]
[1752200800993,5.206,2957.0,2956.8,10.0]
[1752200801504,5.6646,2957.0,2956.8,10.0]
[1752200802001,5.6646,2957.0,2956.6,0.001]
[1752200802002,0.4586,2956.9,2956.6,0.001]
[1752200802303,5.205,2956.8,2956.7,5.27271435]
[1752200802516,5.205,2956.8,2956.7,15.27271435]
[1752200802800,5.6636,2956.8,2956.6,0.001]
[1752200802969,0.8308,2956.7,2956.6,0.001]
[1752200803166,1.2894,2956.7,2956.6,0.001]
[1752200804696,0.4586,2956.7,2956.6,0.001]
[1752200809928,1.10804,2956.7,2956.6,0.001]
[1752200811490,0.4586,2956.7,2956.6,0.001]
[1752200812904,5.204,2956.7,2956.6,5.27371435]
[1752200814330,5.6551,2956.7,2956.6,5.27371435]
[1752200814623,5.6551,2956.7,2956.6,0.001]
[1752200815903,7.02621,2956.7,2956.6,0.001]
[1752200818924,7.10621,2956.7,2956.6,0.001]
[1752200821226,7.10621,2956.7,2956.6,5.27371435]
[1752200821227,7.10521,2956.7,2956.6,5.27371435]
[1752200821598,7.10521,2956.7,2956.6,0.001]